bitfinex-derivatives/quotes_ETHF0:USTF0_20251216
["timestamp","ask_amount","ask_price","bid_price","bid_amount"]
[1765898957561,2.82385602,2927.4,2925.3,3.2078]
[1765898957562,3.2078,2926.8,2926.1,0.17091]
[1765898957770,5.8378,2926.8,2926.2,0.00512891]
[1765898957962,1.8688,2926.7,2926.2,0.00512891]
[1765898958163,3.2078,2926.5,2926.2,0.00512891]
[1765898958357,2.37,2926.5,2926.2,0.00512891]
[1765898958664,0.02384073,2926.5,2926.2,0.00512891]
[1765898958865,0.00384073,2926.5,2926.4,0.17089]
[1765898959069,4.7704,2927.4,2926.4,3.37869]
[1765898959365,4.7704,2927.4,2926.2,0.00512891]
[1765898959366,4.1626,2927.4,2926.2,0.00512891]
[1765898959759,4.1626,2927.4,2926.4,0.17089]
[1765898959960,4.16626413,2927.4,2926.2,0.00512891]
[1765898960166,3.2078,2927.3,2926.5,3.2078]
[1765898960369,3.2078,2927.2,2926.3,3.2078]
[1765898960668,5.8978,2927.2,2926.3,3.2078]
[1765898960861,5.8978,2927.2,2926.2,0.00512891]
[1765898961063,5.8978,2927.2,2926.3,3.2078]
[1765898961261,3.2078,2926.9,2926.3,3.2078]
[1765898961465,5.8378,2926.9,2926.2,0.00512891]
[1765898961666,3.2078,2926.6,2926.2,0.00512891]
[1765898961870,2.31,2926.6,2926.2,0.00512891]
[1765898962059,3.2078,2926.5,2926.2,0.00512891]
[1765898962264,5.6978,2926.5,2926.2,0.00512891]
[1765898962569,40.8,2928.0,2926.4,0.17089]
[1765898962768,3.75626413,2927.4,2926.4,0.17089]
[1765898963163,0.00366413,2927.4,2926.9,0.17086]
[1765898963370,0.00366413,2927.4,2926.9,0.17397336]
[1765898963863,0.00366413,2927.4,2926.9,0.00311336]
[1765898964071,0.00366413,2927.4,2927.1,0.17085]
[1765898964460,0.00366413,2927.4,2927.3,3.2078]
[1765898964660,1.87246413,2927.4,2927.3,3.2078]
[1765898964865,0.00366413,2927.4,2927.2,3.2078]
[1765898969279,4.07246413,2927.4,2926.9,3.21091336]
[1765898970668,0.00366413,2927.4,2926.9,3.21091336]
[1765898971278,0.00366413,2927.4,2927.3,9.1694]
[1765898972565,0.00366413,2927.4,2927.3,6.2942]
[1765898972876,2.85566413,2927.4,2927.3,3.2078]
[1765898973074,0.00366413,2927.4,2927.3,6.2942]
[1765898973378,7.05046413,2927.4,2927.3,3.2078]
[1765898973578,0.00366413,2927.4,2927.3,9.0253]
[1765898974269,0.00366413,2927.4,2927.3,6.1981]
[1765898974472,0.00366413,2927.4,2927.3,8.9222]
[1765898974672,0.00366413,2927.4,2927.3,12.30799675]
[1765898974869,0.17075,2928.9,2927.9,5.6927]
[1765898974870,3.2078,2928.3,2927.9,5.6927]
[1765898975078,2.90601476,2929.8,2927.8,0.17081]
[1765898975079,3.2078,2928.6,2928.2,2.9686]
[1765898975380,40.8,2929.1,2928.3,3.2078]
[1765898975572,43.03,2929.1,2928.3,3.2078]
[1765898975773,43.03393936,2929.1,2928.3,3.2078]
[1765898975976,5.8234,2928.4,2928.3,3.2078]
[1765898976177,5.8234,2928.4,2928.0,3.2078]
[1765898976672,3.0028,2928.4,2928.0,3.2078]
[1765898978680,3.0028,2928.1,2928.0,3.2078]
[1765898979285,3.2078,2929.0,2928.0,4.885]
[1765898979582,40.80393936,2929.1,2928.0,4.885]
[1765898979583,0.00393936,2929.1,2929.0,5.6927]
[1765898979782,5.82733936,2929.1,2929.0,0.00380425]
[1765898979981,8.12733936,2929.1,2929.0,0.00380425]
[1765898980780,8.30733936,2929.1,2929.0,0.00380425]
[1765898981179,5.93733936,2929.1,2929.0,0.00380425]
[1765898981483,5.82733936,2929.1,2929.0,0.00380425]
[1765898982076,8.21733936,2929.1,2929.0,0.00380425]
[1765898982283,14.21733936,2929.1,2929.0,0.00380425]
[1765898982481,8.21733936,2929.1,2929.0,0.00380425]
[1765898982784,8.21733936,2929.1,2928.2,3.2078]
[1765898983582,3.0028,2928.3,2928.2,3.2078]
[1765898983780,1.7914,2928.6,2927.9,3.2078]
[1765898984081,7.6148,2928.0,2927.9,0.00367672]
[1765898984276,5.8234,2927.9,2927.8,0.00512891]
[1765898984672,54.4534,2927.9,2927.8,0.00512891]
[1765898984878,7.6148,2927.4,2927.0,3.2078]
[1765898985073,4.3914,2927.4,2927.0,3.2078]
[1765898985287,6.88175445,2927.3,2926.4,0.2725956]
[1765898985479,0.17085,2927.1,2926.4,0.2725956]
[1765898985680,2.57085,2927.1,2926.2,4.30001504]
[1765898985886,0.00512891,2926.9,2926.4,0.00512891]
[1765898986078,2.52512891,2926.9,2926.4,0.00512891]
[1765898986285,2.5288474,2926.9,2926.4,0.00868883]
[1765898986986,3.2078,2926.7,2926.4,0.00868883]
[1765898987179,2.5,2926.7,2926.4,0.00868883]
[1765898987481,2.19,2926.7,2926.4,0.00868883]
[1765898988084,3.6648,2926.7,2926.4,0.00868883]
[1765898988584,2.19,2926.7,2926.4,0.00868883]
[1765898989180,3.2078,2926.8,2926.4,0.00868883]
[1765898989382,5.5078,2926.8,2926.4,0.00868883]
[1765898990182,40.8,2926.7,2926.4,0.00868883]
[1765898990383,44.6839,2926.7,2926.4,0.00868883]
[1765898990583,43.17,2926.7,2926.4,0.00868883]
[1765898991186,2.37,2926.7,2926.4,0.00868883]
[1765898992193,3.0028,2926.5,2926.4,0.00868883]
[1765898992686,3.0028,2926.5,2925.9,3.2078]
[1765898992687,5.8234,2926.0,2925.9,3.2078]
[1765898992880,5.8478,2926.0,2925.0,1.84817]
[1765898993086,1.3238,2926.8,2925.6,4.30001504]
[1765898993392,3.2078,2926.6,2925.6,7.50781504]
[1765898993588,3.2078,2926.6,2926.0,2.62281504]
[1765898993788,3.2078,2926.6,2926.0,0.00782827]
[1765898993991,3.2278,2926.6,2926.0,0.00782827]
[1765898994189,5.5778,2926.6,2926.0,0.00782827]
[1765898994387,1.7914,2926.2,2926.0,0.00782827]
[1765898994691,0.17091,2926.1,2926.0,2.827e-05]
[1765898994890,8.84091,2926.1,2926.0,2.827e-05]
[1765898995284,55.47152504,2926.1,2926.0,2.827e-05]
[1765898995593,55.47152504,2926.1,2924.8,2.62281504]
[1765898995594,0.17092,2926.0,2924.8,2.62281504]
[1765898995794,0.17092,2925.9,2924.4,4.30001504]
[1765898995992,2.3,2925.9,2924.4,4.30001504]
[1765898996292,2.3,2925.9,2924.4,4.47101504]
[1765898996491,2.3,2925.9,2924.9,0.00512891]
[1765898996896,3.2078,2925.2,2924.9,0.00512891]
[1765898997094,5.8978,2925.2,2924.9,0.00512891]
[1765898998991,3.2078,2925.2,2924.9,0.00512891]
[1765898999594,3.2078,2925.2,2925.0,1.6772]
[1765899000390,1.7914,2925.0,2924.9,0.00512891]
[1765899000590,1.2475,2924.4,2923.5,3.2078]
[1765899000899,3.2078,2923.6,2922.8,0.1711]
[1765899001093,3.2078,2923.9,2923.8,1.6772]
[1765899001394,3.2078,2924.6,2924.2,0.17101]
[1765899001598,3.2078,2925.2,2924.6,1.6772]
[1765899001794,0.00512891,2924.7,2924.6,1.6772]
[1765899001989,0.00896505,2924.7,2924.6,1.6772]
[1765899002188,1.2475,2926.8,2925.1,0.17097]
[1765899002499,1.2475,2926.8,2925.3,1.0939]
[1765899002500,3.6175,2926.8,2925.3,1.0939]
[1765899002903,3.6175,2926.8,2925.7,2.62281504]
[1765899003093,3.62107233,2926.8,2926.0,0.00512891]
[1765899003301,0.00512891,2926.5,2926.0,0.00512891]
[1765899003595,2.25512891,2926.5,2926.0,0.00512891]
[1765899003798,0.00512891,2926.5,2926.0,0.00512891]
[1765899004199,2.66512891,2926.5,2926.0,0.00512891]
[1765899004395,0.00512891,2926.5,2926.0,0.00512891]
[1765899004588,2.47512891,2926.5,2926.0,0.00512891]
[1765899005202,0.46512891,2926.5,2926.3,3.2078]
[1765899005500,0.00512891,2926.5,2926.3,3.21023934]
[1765899006300,0.00357233,2926.8,2926.4,6.17089]
[1765899006495,0.00357233,2926.8,2926.7,3.2078]
[1765899006898,1.7779,2926.7,2926.3,0.00243934]
[1765899007099,4.3779,2926.7,2926.3,0.00243934]
[1765899007605,2.6,2926.7,2926.5,2.62281504]
[1765899007904,0.00870124,2926.8,2926.5,2.62281504]
[1765899008097,0.00870124,2926.8,2926.7,3.2078]
[1765899008302,4.9701,2928.1,2926.7,4.9631]
[1765899008501,4.9701,2928.1,2927.2,3.2078]
[1765899008505,7.5101,2928.1,2927.2,3.2078]
[1765899008701,3.2078,2928.4,2927.5,5.83061504]
[1765899008908,1.7779,2928.1,2927.4,3.2078]
[1765899009105,4.4679,2928.1,2927.4,3.2078]
[1765899009303,3.21292891,2928.0,2927.5,0.00512891]
[1765899009606,5.75292891,2928.0,2927.5,0.00512891]
[1765899009999,5.75292891,2928.0,2927.9,2.62281504]
[1765899010000,0.00512891,2928.0,2927.9,2.62281504]
[1765899010195,0.00512891,2928.0,2927.9,3.2078]
[1765899010908,0.00512891,2928.0,2927.9,5.83061504]
[1765899011096,0.00364624,2928.1,2927.9,5.83061504]
[1765899011604,3.2078,2928.9,2928.1,1.6862]
[1765899011804,3.2078,2929.5,2928.8,2.62281504]
[1765899012103,7.3957,2929.5,2928.8,3.2078]
[1765899012703,7.3997129,2929.5,2928.8,3.21139261]
[1765899013102,3.2078,2929.0,2928.8,0.00359261]
[1765899013301,3.2078,2929.3,2928.8,0.00359261]
[1765899013505,5.8978,2929.3,2928.8,0.00359261]
[1765899013806,1.7779,2928.8,2927.9,3.2078]
[1765899014005,4.3979,2928.8,2927.9,3.2078]
[1765899014707,7.6057,2928.8,2928.2,3.2078]
[1765899014907,3.2078,2929.3,2928.5,3.2078]
[1765899015103,40.8,2929.2,2928.3,2.62281504]
[1765899015298,1.7819129,2929.5,2928.9,3.2078]
[1765899015504,4.2619129,2929.5,2928.7,2.62281504]
[1765899015698,3.2078,2929.3,2928.6,3.2078]
[1765899015902,3.2078,2929.0,2928.3,3.2078]
[1765899016107,5.4078,2929.0,2928.3,3.2078]
[1765899016414,5.57854,2929.0,2928.3,3.2078]
[1765899016614,1.7779,2928.8,2928.3,3.2078]
[1765899016916,4.0679,2928.8,2928.3,3.2078]
[1765899018216,1.7779,2928.1,2927.6,3.2078]
[1765899018415,2.69,2928.1,2927.6,3.2078]
[1765899018711,3.2078,2928.4,2927.6,3.2078]
[1765899019010,2.44,2928.4,2927.6,3.2078]
[1765899019204,2.44,2928.4,2927.9,3.21177702]
[1765899019404,2.66,2928.4,2927.9,3.21177702]
[1765899019611,2.66,2928.4,2927.9,0.00397702]
[1765899019810,5.8678,2928.4,2927.9,0.00397702]
[1765899020014,5.4678,2928.4,2927.9,0.00397702]
[1765899020404,0.87,2928.4,2927.9,3.21177702]
[1765899020611,0.18,2928.4,2927.9,3.21177702]
[1765899020811,2.16,2928.4,2927.9,3.21177702]
[1765899021711,3.2078,2928.7,2928.2,3.2078]
[1765899022014,5.7678,2928.7,2928.2,3.2078]
[1765899022518,1.7779,2928.1,2927.9,0.00397702]
[1765899022720,0.17081,2927.8,2927.5,0.00512891]
[1765899022914,3.2078,2927.6,2926.4,3.2078]
[1765899023113,3.2078,2927.4,2926.4,3.2078]
[1765899023320,3.2078,2927.1,2926.4,3.2078]
[1765899023512,5.7378,2927.1,2926.4,3.2078]
[1765899023713,5.74034309,2927.1,2926.4,3.21183116]
[1765899023907,0.00512891,2927.0,2926.5,0.00512891]
[1765899024116,0.17088,2926.6,2926.5,2.891e-05]
[1765899024419,0.17089,2926.5,2926.4,6.007e-05]
[1765899024609,0.17089,2926.5,2924.6,1.7553]
[1765899024610,0.17092,2925.9,2924.6,1.7553]
[1765899024814,2.42,2925.9,2924.0,1.058]
[1765899025120,0.17095,2925.5,2924.0,1.058]
[1765899025313,0.00512891,2925.0,2924.5,0.00512891]
[1765899025514,2.28512891,2925.0,2924.5,0.00512891]
[1765899025717,2.28952616,2925.0,2924.5,0.00820649]
[1765899026210,0.03952616,2925.0,2924.5,0.00820649]
[1765899026410,0.08952616,2925.0,2924.5,0.00820649]
[1765899026617,0.00952616,2925.0,2924.5,0.00820649]
[1765899026812,2.12952616,2925.0,2924.5,0.00820649]
[1765899027017,2.54952616,2925.0,2924.5,0.00820649]
[1765899027414,3.2078,2924.9,2924.5,0.00820649]
[1765899027615,3.2078,2924.6,2924.5,0.00820649]
[1765899027919,5.5478,2924.6,2924.5,0.00820649]
[1765899028119,0.69,2924.6,2924.5,0.00820649]
[1765899028320,2.34,2924.6,2924.5,0.00820649]
[1765899029517,3.2078,2924.7,2924.5,0.00820649]
[1765899029717,5.6378,2924.7,2924.5,0.00820649]
[1765899030521,0.00952616,2925.0,2924.6,1.7553]
[1765899030825,0.00952616,2925.0,2924.6,1.92629]
[1765899031025,0.00439725,2925.0,2924.9,3.37878]
[1765899031222,0.00439725,2925.0,2924.9,3.2078]
[1765899031425,0.00439725,2925.0,2924.9,9.2078]
[1765899031621,0.00439725,2925.0,2924.6,1.7553]
[1765899031622,0.00439725,2925.0,2924.6,4.9631]
[1765899031824,0.00439725,2925.0,2924.9,3.2078]
[1765899032123,0.00512891,2925.2,2924.9,3.2078]
[1765899033031,0.00818203,2925.2,2924.9,3.2078]
[1765899033227,3.2078,2926.2,2925.0,6.0]
[1765899033434,5.3878,2926.2,2925.3,4.9631]
[1765899034121,3.2078,2925.9,2925.3,3.2078]
[1765899034325,5.44030637,2925.9,2925.3,3.2078]
[1765899034527,5.44030637,2925.9,2925.0,3.2078]
[1765899034728,3.2078,2925.6,2925.0,3.2078]
[1765899035026,5.5378,2925.6,2925.0,3.2078]
[1765899035624,3.2078,2925.6,2925.0,3.2078]
[1765899035824,2.29,2925.6,2925.0,3.2078]
[1765899036026,3.21030637,2925.9,2925.0,3.2078]
[1765899036226,3.23030637,2925.9,2925.0,3.37877]
[1765899036427,5.80030637,2925.9,2925.0,3.37877]
[1765899037124,5.80030637,2925.9,2925.0,3.2078]
[1765899038927,3.21030637,2925.9,2925.3,4.8771]
[1765899039128,0.00250637,2925.9,2925.3,4.8771]
[1765899039429,0.00250637,2925.9,2925.7,3.2078]
[1765899039639,6.37e-06,2925.9,2925.8,0.17093]
[1765899039934,1.7779,2928.1,2925.8,0.17093]
[1765899039935,3.2078,2927.1,2926.7,1.6693]
[1765899040128,5.2178,2927.1,2926.7,1.6693]
[1765899040532,5.2178,2927.1,2926.6,0.00512891]
[1765899040731,5.22075756,2927.1,2926.6,0.00821608]
[1765899041730,0.29295756,2927.1,2926.6,0.00821608]
[1765899041929,2.20295756,2927.1,2926.6,0.00821608]
[1765899042138,5.41075756,2927.1,2926.6,0.00821608]
[1765899042639,3.2078,2926.8,2926.6,0.00821608]
[1765899042834,5.4478,2926.8,2926.6,0.00821608]
[1765899043237,3.2078,2926.8,2926.6,0.00821608]
[1765899043534,0.00295756,2927.1,2926.6,0.00821608]
[1765899043742,2.50295756,2927.1,2926.6,0.00821608]
[1765899044040,3.2078,2926.9,2926.6,0.00821608]
[1765899044238,5.4378,2926.9,2926.6,0.00821608]
[1765899044936,3.2078,2926.9,2926.6,0.00821608]
[1765899045135,5.7778,2926.9,2926.6,0.00821608]
[1765899045839,1.6671,2926.7,2926.6,0.00821608]
[1765899046039,2.32,2926.7,2926.6,0.00821608]
[1765899046236,0.04,2926.7,2926.6,0.00821608]
[1765899046444,3.2078,2926.9,2926.7,1.84017]
[1765899046644,3.2078,2926.9,2926.8,0.17087]
[1765899046839,0.00295756,2927.1,2926.8,0.17087]
[1765899047245,0.00295756,2927.1,2926.7,1.6693]
[1765899048139,2.69295756,2927.1,2926.7,1.6693]
[1765899048341,2.55295756,2927.1,2926.6,0.00821608]
[1765899048648,2.55295756,2927.1,2926.7,1.6693]
[1765899048944,0.00295756,2927.1,2926.7,1.6693]
[1765899049340,0.00295756,2927.1,2926.6,0.17909608]
[1765899049341,3.2078,2926.9,2926.6,0.17909608]
[1765899049735,1.6671,2926.7,2926.6,0.00821608]
[1765899049936,4.2371,2926.7,2925.8,3.2078]
[1765899050136,4.2371,2926.7,2925.3,1.6693]
[1765899050137,3.2078,2926.1,2925.3,1.6693]
[1765899050336,5.7278,2926.1,2925.3,1.6693]
[1765899050737,3.2078,2925.8,2925.2,3.2078]
[1765899050947,5.41292891,2925.8,2925.2,0.00907786]
[1765899051634,3.2078,2925.5,2925.2,0.00907786]
[1765899051838,5.5278,2925.5,2925.2,0.00907786]
[1765899053555,3.21292891,2925.8,2925.3,1.6693]
[1765899053851,5.24292891,2925.8,2925.3,1.6693]
[1765899054151,5.24292891,2925.8,2925.2,0.00907786]
[1765899054649,5.24292891,2925.8,2925.3,1.6693]
[1765899054847,3.21292891,2925.8,2925.3,1.6693]
[1765899055947,5.45292891,2925.8,2925.3,1.6693]
[1765899056147,3.2078,2925.5,2925.2,0.00907786]
[1765899056342,1.6954,2925.3,2925.2,0.00907786]
[1765899056543,4.0554,2925.3,2924.2,3.2078]
[1765899056748,3.2078,2924.7,2923.9,5.04814]
[1765899056948,5.8478,2924.7,2923.9,5.04814]
[1765899057162,5.8478,2924.7,2923.9,3.2078]
[1765899057347,3.2078,2924.7,2923.9,4.8771]
[1765899057548,3.24093902,2924.7,2924.0,0.00512891]
[1765899057756,5.69093902,2924.7,2924.0,0.00512891]
[1765899058357,2.48313902,2924.7,2924.2,3.2078]
[1765899059159,5.69093902,2924.7,2924.2,3.2078]
[1765899059359,3.70093902,2924.7,2924.2,3.2078]
[1765899059758,3.21093902,2924.7,2924.2,3.2078]
[1765899060055,3.21093902,2924.7,2924.0,0.17615891]
[1765899060056,5.73093902,2924.7,2924.0,0.00512891]
[1765899060262,3.2078,2924.4,2924.0,0.00512891]
[1765899060555,5.5578,2924.4,2924.0,0.00512891]
[1765899060756,3.2078,2924.1,2923.0,3.2078]
[1765899060952,3.2078,2923.5,2923.2,1.6693]
[1765899061155,3.2078,2924.2,2923.4,0.17106]
[1765899061357,2.23,2924.2,2923.4,0.17106]
[1765899061659,3.2078,2923.8,2923.2,1.6693]
[1765899061850,0.00512891,2923.8,2923.4,3.2078]
[1765899062053,0.00512891,2923.8,2923.5,3.2078]
[1765899062252,2.891e-05,2923.8,2923.7,2.97711547]
[1765899062554,3.21093902,2924.7,2923.9,1.84033]
[1765899062749,5.62093902,2924.7,2924.1,3.2078]
[1765899063253,5.40093902,2924.7,2924.1,3.2078]
[1765899063557,5.40606793,2924.7,2923.9,1.84033]
[1765899063759,3.2078,2924.3,2923.9,1.6693]
[1765899063956,5.5478,2924.3,2923.9,1.6693]
[1765899064256,5.5478,2924.3,2923.4,15.77487]
[1765899064457,3.2078,2924.3,2923.4,15.77487]
[1765899064660,3.2078,2924.0,2923.4,3.2078]
[1765899064851,5.8778,2924.0,2923.2,1.67798947]
[1765899065051,2.67,2924.0,2923.2,1.67798947]
[1765899065258,3.2078,2924.3,2923.9,1.70404]
[1765899065556,0.00826793,2924.7,2924.6,1.533]
[1765899066860,0.00535497,2924.7,2924.6,7.704]
[1765899067362,0.00535497,2924.7,2924.4,3.2078]
[1765899067557,5.60315497,2924.7,2924.0,3.2078]
[1765899067757,0.00535497,2924.7,2924.6,1.533]
[1765899067954,2.57535497,2924.7,2924.3,3.2078]
[1765899068155,2.57535497,2924.7,2924.0,3.2078]
[1765899068156,5.78315497,2924.7,2924.0,3.2078]
[1765899068556,0.50535497,2924.7,2924.3,3.2078]
[1765899068858,2.19535497,2924.7,2924.3,3.2078]
[1765899069064,0.00535497,2924.7,2924.6,1.533]
[1765899069455,0.00535497,2924.7,2924.6,4.7408]
[1765899069959,3.2078,2925.6,2924.8,0.17098]
[1765899070151,5.8278,2925.6,2925.0,3.2078]
[1765899070655,3.2078,2925.6,2925.3,1.533]
[1765899070866,0.00242955,2925.6,2925.3,1.53711879]
[1765899071165,2.955e-05,2925.6,2925.5,3.37874]
[1765899071361,5.846e-05,2925.7,2925.6,0.17094]
[1765899071558,5.846e-05,2925.7,2925.6,22.44694]
[1765899071753,3.2078,2926.5,2926.4,0.17089]
[1765899071958,3.2078,2926.8,2926.7,1.533]
[1765899072359,0.00260306,2926.8,2926.7,1.533]
[1765899072659,3.06e-06,2926.8,2926.7,1.533]
[1765899073765,3.06e-06,2926.8,2926.6,3.2078]
[1765899073959,3.06e-06,2926.8,2926.5,0.00512891]
[1765899074166,3.2078,2926.6,2926.5,0.00512891]
[1765899074357,5.7178,2926.6,2926.5,0.00512891]
[1765899074553,3.2078,2926.7,2926.5,0.00512891]
[1765899074959,3.06e-06,2926.8,2926.5,0.00512891]
[1765899075360,3.2078,2926.7,2926.5,0.00512891]
[1765899075568,5.5878,2926.7,2926.5,0.00512891]
[1765899076269,7.1255,2926.7,2926.5,0.00512891]
[1765899076465,7.1255,2926.7,2926.5,2.891e-05]
[1765899076868,6.0,2926.6,2926.5,2.891e-05]
[1765899077166,8.62,2926.6,2926.5,2.891e-05]
[1765899077366,0.17089,2926.4,2925.3,0.00411879]
[1765899077568,3.2078,2925.9,2925.3,0.00411879]
[1765899077770,3.2078,2925.6,2925.3,0.00411879]
[1765899077966,0.5,2925.6,2925.3,0.00411879]
[1765899078172,3.2078,2925.4,2925.3,0.00411879]
[1765899078372,5.6878,2925.4,2925.3,0.00411879]
[1765899080166,0.01,2925.4,2925.3,0.00411879]
[1765899080362,0.00512891,2925.6,2925.3,1.53711879]
[1765899080563,0.00512891,2925.6,2925.5,3.2078]
[1765899081163,2.891e-05,2925.6,2925.5,9.37874]
[1765899081369,2.891e-05,2925.6,2925.5,12.42044724]
[1765899081569,2.891e-05,2925.6,2925.5,9.37874]
[1765899081768,2.891e-05,2925.6,2925.5,3.37874]
[1765899081974,2.891e-05,2925.6,2925.5,12.42044724]
[1765899082268,2.891e-05,2925.6,2925.5,3.37874]
[1765899082672,2.891e-05,2925.6,2925.5,6.42044724]
[1765899082866,2.891e-05,2925.6,2925.5,12.42044724]
[1765899083067,3.06e-06,2926.8,2925.5,9.2078]
[1765899083270,3.06e-06,2926.8,2926.5,3.2078]
[1765899083466,2.55000306,2926.8,2926.2,3.2078]
[1765899084579,1.4877,2926.7,2926.2,3.2078]
[1765899084777,2.23,2926.7,2926.2,3.2078]
[1765899084970,2.26,2926.7,2926.2,3.2078]
[1765899086074,3.2078,2926.5,2925.8,3.2078]
[1765899086274,2.34,2926.5,2925.8,3.2078]
[1765899086975,5.5478,2926.5,2925.8,3.2078]
[1765899087183,3.2078,2925.9,2925.3,0.00411879]
[1765899087371,3.2078,2925.6,2925.3,0.00411879]
[1765899087572,3.2078,2925.9,2925.3,1.53711879]
[1765899087772,5.8778,2925.9,2925.3,1.53711879]
[1765899088175,5.8778,2925.9,2925.3,0.00411879]
[1765899088571,3.2078,2925.6,2925.3,0.00411879]
[1765899088764,5.4078,2925.6,2925.3,0.00411879]
[1765899088973,2.59,2925.6,2925.3,0.00411879]
[1765899089275,40.8,2925.6,2925.3,0.00411879]
[1765899089476,46.2578,2925.6,2925.3,0.00411879]
[1765899090971,44.0078,2925.6,2925.3,0.00411879]
[1765899091171,0.31,2925.6,2925.3,0.00411879]
[1765899091371,3.2078,2925.7,2925.3,0.00411879]
[1765899091575,46.2578,2925.7,2925.3,0.00411879]
[1765899091873,2.25,2925.7,2925.3,0.00411879]
[1765899092081,2.32,2925.7,2925.3,1.53711879]
[1765899092278,3.2078,2926.0,2925.3,1.53711879]
[1765899092478,5.7378,2926.0,2925.3,1.53711879]
[1765899093180,5.7378,2926.0,2925.5,3.2078]
[1765899093680,3.2078,2926.4,2925.5,3.2078]
[1765899093872,5.5778,2926.4,2925.5,3.2078]
[1765899094075,3.5378,2926.4,2926.0,1.4105]
[1765899094377,3.5378,2926.4,2926.2,2.62884769]
[1765899094378,3.2078,2926.4,2926.2,2.62884769]
[1765899095173,3.2078,2926.4,2926.2,2.62625207]
[1765899095377,3.06e-06,2926.8,2926.2,5.83405207]
[1765899095580,3.06e-06,2926.8,2926.7,4.03675207]
[1765899097477,3.2078,2927.4,2926.7,10.03675207]
[1765899097681,3.2078,2927.4,2926.9,0.17086]
[1765899098077,3.2078,2927.7,2926.9,0.17086]
[1765899098376,3.2078,2927.7,2927.1,2.62625207]
[1765899098575,3.21063121,2927.7,2927.1,2.62625207]
[1765899099285,3.21063121,2927.7,2927.2,0.17084]
[1765899099578,0.00283121,2927.7,2927.1,5.83405207]
[1765899099776,0.00283121,2927.7,2927.1,3.2078]
[1765899099977,2.15283121,2927.7,2927.1,3.2078]
[1765899100184,0.00283121,2927.7,2927.1,3.2078]
[1765899100384,0.00283121,2927.7,2927.4,1.4105]
[1765899100585,0.00283121,2927.7,2927.4,1.41294224]
[1765899101978,0.00283121,2927.7,2927.5,3.2078]
[1765899102281,0.00283121,2927.7,2927.4,0.00244224]
[1765899102589,3.2078,2927.5,2927.4,0.00244224]
[1765899102879,2.6,2927.5,2927.4,0.00244224]
[1765899103086,2.23,2927.5,2927.4,0.00244224]
[1765899103787,2.7,2927.5,2927.4,0.00244224]
[1765899103988,2.46,2927.5,2927.4,0.00244224]
[1765899104182,0.00283121,2927.7,2927.4,0.00244224]
[1765899104382,0.00283121,2927.7,2927.4,1.41294224]
[1765899105385,0.00283121,2927.7,2927.6,2.62625207]
[1765899106882,3.121e-05,2927.7,2927.6,5.83405207]
[1765899107879,3.2078,2928.7,2928.0,0.1708]
[1765899108082,3.2078,2928.7,2928.2,2.79703207]
[1765899108977,3.21208891,2928.7,2928.2,2.79703207]
[1765899109183,3.21208891,2928.7,2928.3,0.17078]
[1765899109385,4.42712294,2930.1,2928.8,0.3118]
[1765899109695,7.08712294,2930.1,2929.4,3.2078]
[1765899109890,40.8,2930.0,2929.4,3.2078]
[1765899110093,43.48,2930.0,2929.4,3.2078]
[1765899110280,1.4249,2929.5,2929.4,3.2078]
[1765899110486,4.08770791,2929.5,2929.2,0.00512891]
[1765899110791,3.2078,2929.3,2929.2,2.891e-05]
[1765899110987,2.55,2929.3,2929.2,2.891e-05]
[1765899112086,0.00787785,2929.5,2929.2,3.20782891]
[1765899112478,0.00787785,2929.5,2929.3,2.62625207]
[1765899113789,1.3049,2930.9,2930.0,2.62625207]
[1765899113988,1.3049,2930.9,2930.4,2.62625207]
[1765899114185,3.2078,2931.3,2930.8,2.62625207]
[1765899114586,0.79752261,2931.6,2931.2,3.2078]
[1765899114781,0.00298585,2931.3,2931.2,5.83405207]
[1765899114985,0.00298585,2931.3,2931.2,6.35910518]
[1765899115385,3.2078,2932.2,2931.2,6.35910518]
[1765899115594,3.87820358,2932.0,2931.6,2.62625207]
[1765899115796,1.21820358,2932.0,2931.7,0.52505311]
[1765899115986,1.21820358,2932.0,2931.6,2.62625207]
[1765899115987,1.21820358,2932.0,2931.8,3.73285311]
[1765899116188,3.79820358,2932.0,2931.9,0.52505311]
[1765899116387,0.00363845,2932.0,2931.9,0.52505311]
[1765899116691,1.4249,2933.0,2931.9,6.80267034]
[1765899116997,40.8,2933.5,2932.6,2.62625207]
[1765899117207,3.2078,2933.6,2932.6,2.62625207]
[1765899117208,3.2078,2933.6,2932.8,3.21291989]
[1765899117496,5.6178,2933.6,2932.9,0.52505311]
[1765899117695,1.4249,2933.0,2932.9,0.00439715]
[1765899117995,3.9849,2933.0,2932.8,0.00511989]
[1765899118193,3.9849,2933.0,2932.5,3.2078]
[1765899118194,6.0,2932.9,2932.5,1.989e-05]
[1765899118490,0.00320558,2933.6,2931.8,3.36928331]
[1765899118696,2.44320558,2933.6,2932.0,0.17056]
[1765899118892,2.44320558,2933.6,2932.0,0.1735666]
[1765899119091,2.44320558,2933.6,2932.1,2.322]
[1765899119393,2.44320558,2933.6,2932.0,0.1735666]
[1765899119394,0.00511989,2933.1,2932.6,0.00511989]
[1765899119585,2.32511989,2933.1,2932.6,0.00511989]
[1765899119782,0.3284,2933.0,2932.6,0.00511989]
[1765899119983,0.17051,2932.9,2932.6,1.989e-05]
[1765899120185,2.66,2932.9,2932.6,1.989e-05]
[1765899120387,2.31,2932.9,2932.6,1.989e-05]
[1765899120789,6.0,2932.8,2932.6,1.989e-05]
[1765899120994,8.6,2932.8,2932.6,1.989e-05]
[1765899121399,2.6,2932.8,2932.6,1.989e-05]
[1765899121895,8.77052,2932.8,2932.6,1.989e-05]
[1765899122090,3.2078,2932.7,2932.6,1.989e-05]
[1765899122291,5.7078,2932.7,2932.6,1.989e-05]
[1765899122895,11.7078,2932.7,2932.6,1.989e-05]
[1765899123991,11.87832,2932.7,2932.6,1.989e-05]
[1765899124189,0.8032,2932.3,2932.0,2.649e-05]
[1765899124392,3.2078,2932.1,2932.0,2.649e-05]
[1765899124591,5.0717944,2932.1,2932.0,2.649e-05]
[1765899125297,3.2078,2932.5,2932.0,2.649e-05]
[1765899125796,3.2078,2932.8,2932.0,2.649e-05]
[1765899126002,5.8078,2932.8,2932.1,3.2078]